[Event "8th RTU Open 2018"]
[Site "Riga"]
[Date "2018.08.06"]
[Round "1"]
[White "Mitrandzas, Athanasios"]
[Black "Gokerkan, Cem Kaan"]
[Result "0-1"]
[ECO "A25"]
[WhiteElo "2121"]
[BlackElo "2404"]
[Annotator "NA"]
[PlyCount "92"]
[EventDate "2018.08.06"]
[EventType "swiss"]
[EventCountry "LAT"]
[SourceTitle "playchess.com"]
[Source "ChessBase"]
[SourceQuality "1"]
[TimeControl "5400+30"]

1. c4 g6 {[%emt 0:01:27]} 2. g3 {[%emt 0:00:00]} Bg7 {[%emt 0:01:06]} 3. Bg2 {[%emt 0:00:12]} e5 {[%emt 0:01:12]} 4. Nc3 {[%emt 0:00:20]} Nc6 {[%emt 0:01:02]} 5. e4 {[%emt 0:01:01]} d6 {[%emt 0:01:55]} 6. Nge2 {[%emt 0:00:38]} h5 {[%emt 0:08:23]} 7. h4 {[%emt 0:00:14]} Be6 {[%emt 0:07:10]} 8. d3 {[%emt 0:00:20]} Nge7 {[%emt 0:00:26]} 9. Nd5 {[%emt 0:01:08]} O-O {[%emt 0:03:47]} 10. O-O {[%emt 0:00:42]} Qd7 {[%emt 0:03:21]} 11. Bg5 {[%emt 0:05:43]} f6 {[%emt 0:03:01]} 12. Be3 {[%emt 0:00:13]} Rae8 {[%emt 0:06:09]} 13. Qd2 {[%emt 0:05:48]} Kh7 {[%emt 0:05:31]} 14. Rad1 {[%emt 0:14:52]} Ng8 {[%emt 0:08:43]} 15. d4 {[%emt 0:04:58]} Bh3 {[%emt 0:14:58]} 16. Bxh3 {[%emt 0:10:32]} Qxh3 {[%emt 0:00:21]} 17. Nxc7 {[%emt 0:00:10]} exd4 {[%emt 0:01:09]} 18. Nxd4 {[%emt 0:01:24]} Rxe4 {[%emt 0:07:18]} 19. Nxc6 {[%emt 0:05:55]} bxc6 {[%emt 0:08:46]} 20. Qxd6 {[%emt 0:01:57]} Rf7 {[%emt 0:00:54]} 21. Bf4 {[%emt 0:13:47]} Qc8 {[%emt 0:03:42]} 22. Rd4 {[%emt 0:12:52]} Rxf4 {[%emt 0:05:09]} 23. Qxf4 {[%emt 0:00:15]} f5 {[%emt 0:01:56]} 24. Ne6 {[%emt 0:07:20]} Qxe6 {[%emt 0:00:10]} 25. Rd6 {[%emt 0:00:08]} Qe8 {[%emt 0:01:14]} 26. Qd2 {[%emt 0:01:18]} Nf6 {[%emt 0:00:22]} 27. Qd3 {[%emt 0:02:09]} Ne4 {[%emt 0:02:13]} 28. Rd8 {[%emt 0:00:21]} Qe7 {[%emt 0:00:23]} 29. b3 {[%emt 0:00:22]} c5 {[%emt 0:01:02]} 30. Qd5 {[%emt 0:02:02]} Bd4 {[%emt 0:00:32]} 31. Kg2 {[%emt 0:00:25]} Nc3 {[%emt 0:00:55]} 32. Qa8 {[%emt 0:02:27]} Qb7+ {[%emt 0:00:19]} 33. Qxb7 {[%emt 0:02:31]} Rxb7 {[%emt 0:00:00]} 34. a4 {[%emt 0:00:34]} Kh6 {[%emt 0:00:53]} 35. Re1 {[%emt 0:00:43]} Rxb3 {[%emt 0:01:06]} 36. Rd7 {[%emt 0:00:09]} Ne4 {[%emt 0:00:08]} 37. Re2 {[%emt 0:00:27]} a5 {[%emt 0:00:56]} 38. Ra7 {[%emt 0:00:56]} Rb4 {[%emt 0:00:36]} 39. f3 {[%emt 0:00:08]} Nf6 {[%emt 0:00:22]} 40. Ree7 {[%emt 0:01:22]} Rb2+ {[%emt 0:00:13]} 41. Kh1 {[%emt 0:00:33]} Rb1+ {[%emt 0:00:04]} 42. Kg2 {[%emt 0:00:05]} Rb2+ {[%emt 0:00:03]} 43. Kh1 {[%emt 0:00:04]} g5 {[%emt 0:01:35]} 44. Rg7 {[%emt 0:03:30]} Rb1+ {[%emt 0:00:10]} 45. Kg2 {[%emt 0:00:06]} gxh4 {[%emt 0:00:36]} 46. gxh4 {[%emt 0:00:05]} Rg1+ {[%emt 0:00:04]} 0-1

[Event "8th RTU Open 2018"]
[Site "Riga"]
[Date "2018.08.06"]
[Round "1"]
[White "Pavlov, Sergey"]
[Black "Chekletsov, Egor"]
[Result "1-0"]
[ECO "A15"]
[WhiteElo "2003"]
[BlackElo "2171"]
[Annotator "NA"]
[PlyCount "61"]
[EventDate "2018.08.06"]
[EventType "swiss"]
[EventCountry "LAT"]
[SourceTitle "playchess.com"]
[Source "ChessBase"]
[SourceQuality "1"]
[TimeControl "5400+30"]

1. c4 {[%emt 0:00:00]} Nf6 {[%emt 0:00:00]} 2. g3 {[%emt 0:00:23]} c5 {[%emt 0:00:37]} 3. Bg2 {[%emt 0:00:12]} g6 {[%emt 0:00:17]} 4. Nf3 {[%emt 0:00:33]} Bg7 {[%emt 0:00:13]} 5. Nc3 {[%emt 0:00:36]} O-O {[%emt 0:00:49]} 6. d4 {[%emt 0:00:32]} cxd4 {[%emt 0:00:30]} 7. Nxd4 {[%emt 0:00:07]} Nc6 {[%emt 0:00:29]} 8. O-O {[%emt 0:00:30]} Nxd4 {[%emt 0:00:46]} 9. Qxd4 {[%emt 0:00:18]} d6 {[%emt 0:00:14]} 10. Qd3 {[%emt 0:04:10]} a5 {[%emt 0:05:38]} 11. Bd2 {[%emt 0:10:05]} Nd7 {[%emt 0:05:31]} 12. Qc2 {[%emt 0:03:49]} Nc5 {[%emt 0:07:33]} 13. b3 {[%emt 0:02:34]} Bd7 {[%emt 0:11:05]} 14. Rac1 {[%emt 0:07:00]} Bc6 {[%emt 0:03:03]} 15. Rfd1 {[%emt 0:06:42]} Bxg2 {[%emt 0:10:00]} 16. Kxg2 {[%emt 0:00:49]} Qb6 {[%emt 0:01:33]} 17. Nd5 {[%emt 0:06:18]} Qc6 {[%emt 0:01:13]} 18. f3 {[%emt 0:02:05]} Rfe8 {[%emt 0:04:07]} 19. Bg5 {[%emt 0:06:10]} Bf8 {[%emt 0:08:06]} 20. Qd2 {[%emt 0:06:57]} Ne6 {[%emt 0:05:16]} 21. Bh6 {[%emt 0:01:17]} Bg7 {[%emt 0:06:03]} 22. h4 {[%emt 0:04:57]} Bh8 {[%emt 0:05:43]} 23. h5 {[%emt 0:03:05]} a4 {[%emt 0:06:41]} 24. b4 {[%emt 0:11:37]} Nd4 {[%emt 0:11:38]} 25. hxg6 {[%emt 0:07:05]} hxg6 {[%emt 0:00:08]} 26. Be3 {[%emt 0:05:21]} Nf5 {[%emt 0:00:37]} 27. Bf2 {[%emt 0:01:27]} e6 {[%emt 0:01:05]} 28. b5 {[%emt 0:00:47]} Qd7 {[%emt 0:02:38]} 29. Nb6 {[%emt 0:00:24]} Qe7 {[%emt 0:00:06]} 30. Nxa8 {[%emt 0:00:49]} Rxa8 {[%emt 0:00:05]} 31. e4 {[%emt 0:02:06]} 1-0

[Event "8th RTU Open 2018"]
[Site "Riga"]
[Date "2018.08.08"]
[Round "4"]
[White "Schroeder, Jan Christian"]
[Black "Seeman, Tarvo"]
[Result "1-0"]
[ECO "C41"]
[WhiteElo "2573"]
[BlackElo "2405"]
[Annotator "ChessBase"]
[PlyCount "65"]
[EventDate "2018.08.06"]
[EventType "swiss"]
[EventCountry "LAT"]
[SourceTitle "playchess.com"]
[Source "ChessBase"]
[SourceQuality "1"]
[TimeControl "5400+30"]

1. e4 {[%emt 0:00:00]} d6 {[%emt 0:00:00]} 2. d4 {[%emt 0:00:00]} Nf6 {[%emt 0:00:00]} 3. Nc3 {[%emt 0:00:00]} e5 {[%emt 0:00:00]} 4. Nf3 {[%emt 0:00:00]} Nbd7 {[%emt 0:00:00]} 5. Bc4 {[%emt 0:00:00]} Be7 {[%emt 0:00:00]} 6. O-O {[%emt 0:00:04]} O-O {[%emt 0:00:00]} 7. a4 {[%emt 0:00:04]} a6 {[%emt 0:00:42]} 8. a5 {[%emt 0:00:04]} h6 {[%emt 0:01:20]} 9. Be3 {[%emt 0:29:20]} Re8 {[%emt 0:09:30]} 10. Qb1 {[%emt 0:10:47]} exd4 {[%emt 0:09:46]} 11. Bxd4 {[%emt 0:00:23]} Nf8 {[%emt 0:01:39]} 12. Qa2 {[%emt 0:00:40]} Be6 {[%emt 0:00:24]} 13. Rad1 {[%emt 0:04:04]} Qc8 {[%emt 0:04:07]} 14. Rfe1 {[%emt 0:04:06]} Ng6 {[%emt 0:09:41]} 15. Qb3 {[%emt 0:10:37]} Ng4 {[%emt 0:09:39]} 16. Bxe6 {[%emt 0:03:16]} fxe6 {[%emt 0:02:45]} 17. h3 {[%emt 0:00:12]} N4e5 {[%emt 0:00:32]} 18. Nxe5 {[%emt 0:01:14]} dxe5 {[%emt 0:00:25]} 19. Be3 {[%emt 0:00:12]} Rf8 {[%emt 0:06:24]} 20. Na4 {[%emt 0:01:06]} Rf7 {[%emt 0:03:51]} 21. Rd2 {[%emt 0:02:18]} Kh7 {[%emt 0:03:47]} 22. Red1 {[%emt 0:00:55]} Qe8 {[%emt 0:02:38]} 23. Rd7 {[%emt 0:05:25]} Bd6 {[%emt 0:01:53]} 24. Rxf7 {[%emt 0:00:35]} Qxf7 {[%emt 0:00:05]} 25. Qxb7 {[%emt 0:02:01]} Rf8 {[%emt 0:00:47]} 26. Qxa6 {[%emt 0:02:11]} Nh4 {[%emt 0:00:32]} 27. Qe2 {[%emt 0:03:09]} Ra8 {[%emt 0:01:54]} 28. Bd2 {[%emt 0:02:58]} h5 {[%emt 0:03:15]} 29. b4 {[%emt 0:02:23]} Qg6 {[%emt 0:01:30]} 30. f3 {[%emt 0:00:06]} Qf6 {[%emt 0:00:54]} 31. a6 {[%emt 0:03:29]} g5 {[%emt 0:00:42]} 32. b5 {[%emt 0:00:42]} Ng6 {[%emt 0:01:29]} 33. Be3 {[%emt 0:01:19]} 1-0

[Event "8th RTU Open 2018"]
[Site "Riga"]
[Date "2018.08.08"]
[Round "4"]
[White "Kulaots, Kaido"]
[Black "Faibisovich, Vadim Z"]
[Result "1-0"]
[ECO "A28"]
[WhiteElo "2554"]
[BlackElo "2310"]
[Annotator "ChessBase"]
[PlyCount "192"]
[EventDate "2018.08.06"]
[EventType "swiss"]
[EventCountry "LAT"]
[SourceTitle "playchess.com"]
[Source "ChessBase"]
[SourceQuality "1"]
[TimeControl "5400+30"]

1. c4 {[%emt 0:00:00]} e5 {[%emt 0:01:12]} 2. Nc3 {[%emt 0:00:00]} Nf6 {[%emt 0:00:29]} 3. Nf3 {[%emt 0:00:00]} Nc6 {[%emt 0:00:35]} 4. e3 {[%emt 0:00:00]} d5 {[%emt 0:03:32]} 5. cxd5 {[%emt 0:00:09]} Nxd5 {[%emt 0:00:09]} 6. Bb5 {[%emt 0:00:20]} Nxc3 {[%emt 0:02:08]} 7. bxc3 {[%emt 0:01:46]} Bd6 {[%emt 0:11:55]} 8. d4 {[%emt 0:01:01]} exd4 {[%emt 0:01:53]} 9. cxd4 {[%emt 0:05:31]} O-O {[%emt 0:00:53]} 10. O-O {[%emt 0:00:10]} Bg4 {[%emt 0:03:26]} 11. h3 {[%emt 0:01:52]} Bh5 {[%emt 0:00:47]} 12. Rb1 {[%emt 0:06:47]} Qf6 {[%emt 0:07:56]} 13. Be2 {[%emt 0:15:43]} b6 {[%emt 0:03:50]} 14. Bb2 {[%emt 0:10:17]} Bg6 {[%emt 0:04:56]} 15. Rc1 {[%emt 0:02:07]} Ne7 {[%emt 0:07:07]} 16. Nd2 {[%emt 0:11:06]} Qe6 {[%emt 0:07:10]} 17. e4 {[%emt 0:10:52]} Bxe4 {[%emt 0:13:31]} 18. Nxe4 {[%emt 0:00:36]} Qxe4 {[%emt 0:00:09]} 19. Bf3 {[%emt 0:00:05]} Qe6 {[%emt 0:00:37]} 20. Bxa8 {[%emt 0:20:51]} Qxa2 {[%emt 0:00:29]} 21. Ra1 {[%emt 0:02:22]} Qxb2 {[%emt 0:00:22]} 22. Be4 {[%emt 0:02:11]} Qb5 {[%emt 0:04:51]} 23. Rxa7 {[%emt 0:00:14]} Qg5 {[%emt 0:00:30]} 24. Qd3 {[%emt 0:00:51]} h5 {[%emt 0:06:42]} 25. Rfa1 {[%emt 0:00:25]} g6 {[%emt 0:00:59]} 26. Qf3 {[%emt 0:00:40]} h4 {[%emt 0:03:00]} 27. Qe3 {[%emt 0:02:33]} Qf4 {[%emt 0:01:20]} 28. Qxf4 {[%emt 0:00:14]} Bxf4 {[%emt 0:00:10]} 29. Kf1 {[%emt 0:00:16]} Kg7 {[%emt 0:01:23]} 30. Ke2 {[%emt 0:00:13]} f5 {[%emt 0:00:35]} 31. Bf3 {[%emt 0:00:49]} Kf6 {[%emt 0:01:15]} 32. Ra8 {[%emt 0:00:08]} Rxa8 {[%emt 0:02:01]} 33. Rxa8 {[%emt 0:00:05]} g5 {[%emt 0:00:31]} 34. Rf8+ {[%emt 0:00:43]} Kg7 {[%emt 0:02:44]} 35. Re8 {[%emt 0:00:05]} Bd6 {[%emt 0:00:16]} 36. Rb8 {[%emt 0:01:39]} Ng6 {[%emt 0:00:22]} 37. Kd3 {[%emt 0:00:36]} Nf4+ {[%emt 0:00:40]} 38. Kc4 {[%emt 0:00:03]} g4 {[%emt 0:01:05]} 39. hxg4 {[%emt 0:00:06]} fxg4 {[%emt 0:00:09]} 40. Bxg4 {[%emt 0:00:40]} Nxg2 {[%emt 0:00:09]} 41. Re8 {[%emt 0:01:36]} Nf4 {[%emt 0:00:22]} 42. Re3 {[%emt 0:00:04]} Kf6 {[%emt 0:00:56]} 43. Bd7 {[%emt 0:00:08]} Kg5 {[%emt 0:00:53]} 44. Kb5 {[%emt 0:00:18]} Nd5 {[%emt 0:01:08]} 45. Rf3 {[%emt 0:00:17]} Nf4 {[%emt 0:01:12]} 46. Kc6 {[%emt 0:00:26]} Kf6 {[%emt 0:00:53]} 47. Kb5 {[%emt 0:00:09]} Ke7 {[%emt 0:00:51]} 48. Bg4 {[%emt 0:00:09]} Kf6 {[%emt 0:00:14]} 49. Kc4 {[%emt 0:00:08]} Kg5 {[%emt 0:00:08]} 50. Bd7 {[%emt 0:00:04]} Kf6 {[%emt 0:00:08]} 51. Re3 {[%emt 0:01:00]} Kg5 {[%emt 0:00:26]} 52. Re8 {[%emt 0:01:00]} Kg6 {[%emt 0:01:40]} 53. Rg8+ {[%emt 0:00:43]} Kf6 {[%emt 0:01:02]} 54. Rg4 {[%emt 0:01:09]} Nh3 {[%emt 0:00:26]} 55. f3 {[%emt 0:02:47]} Ng5 {[%emt 0:00:49]} 56. f4 {[%emt 0:00:36]} Ne6 {[%emt 0:00:28]} 57. Rxh4 {[%emt 0:03:07]} Nxf4 {[%emt 0:00:09]} 58. Rh6+ {[%emt 0:00:09]} Kg5 {[%emt 0:00:40]} 59. Rh1 {[%emt 0:00:13]} Kf6 {[%emt 0:00:23]} 60. Re1 {[%emt 0:00:16]} Kg5 {[%emt 0:00:39]} 61. d5 {[%emt 0:00:20]} Kf6 {[%emt 0:00:31]} 62. Kd4 {[%emt 0:00:24]} Ng6 {[%emt 0:00:48]} 63. Re6+ {[%emt 0:00:07]} Kg7 {[%emt 0:00:40]} 64. Be8 {[%emt 0:00:32]} Ne7 {[%emt 0:00:39]} 65. Ke4 {[%emt 0:00:31]} Kf8 {[%emt 0:00:39]} 66. Bb5 {[%emt 0:00:08]} Kg7 {[%emt 0:00:19]} 67. Bc4 {[%emt 0:01:20]} Kf7 {[%emt 0:00:40]} 68. Be2 {[%emt 0:00:37]} Kg7 {[%emt 0:00:19]} 69. Kd4 {[%emt 0:00:15]} Nf5+ {[%emt 0:00:16]} 70. Kc4 {[%emt 0:00:17]} b5+ {[%emt 0:00:30]} 71. Kd3 {[%emt 0:00:24]} b4 {[%emt 0:00:21]} 72. Kc4 {[%emt 0:00:05]} Ne7 {[%emt 0:00:18]} 73. Bd3 {[%emt 0:00:48]} Kf7 {[%emt 0:00:21]} 74. Re1 {[%emt 0:00:37]} Kf6 {[%emt 0:00:24]} 75. Be2 {[%emt 0:00:31]} Ke5 {[%emt 0:01:12]} 76. Bg4+ {[%emt 0:00:06]} Kf6 {[%emt 0:01:40]} 77. Kd4 {[%emt 0:00:02]} Ng6 {[%emt 0:01:00]} 78. Ke4 {[%emt 0:00:23]} Ne7 {[%emt 0:00:20]} 79. Rf1+ {[%emt 0:00:17]} Kg7 {[%emt 0:00:42]} 80. Bd7 {[%emt 0:00:32]} Kg6 {[%emt 0:00:23]} 81. Rg1+ {[%emt 0:01:38]} Kf6 {[%emt 0:00:48]} 82. Be8 {[%emt 0:00:06]} Nc8 {[%emt 0:00:47]} 83. Rg6+ {[%emt 0:01:11]} Ke7 {[%emt 0:00:02]} 84. Rg8 {[%emt 0:01:24]} Kf6 {[%emt 0:00:24]} 85. Bd7 {[%emt 0:00:44]} Ne7 {[%emt 0:00:32]} 86. Rg2 {[%emt 0:00:04]} Kf7 {[%emt 0:00:30]} 87. Bg4 {[%emt 0:00:04]} Kf6 {[%emt 0:00:48]} 88. Bh5 {[%emt 0:00:06]} Bc5 {[%emt 0:01:11]} 89. Rg3 {[%emt 0:00:52]} Bd6 {[%emt 0:00:12]} 90. Rg1 {[%emt 0:00:05]} Bc5 {[%emt 0:00:21]} 91. Rf1+ {[%emt 0:00:40]} Kg5 {[%emt 0:00:11]} 92. Be8 {[%emt 0:00:27]} Bd6 {[%emt 0:00:06]} 93. Rf2 {[%emt 0:01:30]} Bc5 {[%emt 0:00:42]} 94. Rf3 {[%emt 0:00:30]} Bd6 {[%emt 0:00:08]} 95. Rf1 {[%emt 0:00:04]} Nc8 {[%emt 0:02:17]} 96. Rf5+ {[%emt 0:00:27]} Kh6 1-0

[Event "8th RTU Open 2018"]
[Site "Riga"]
[Date "2018.08.08"]
[Round "4"]
[White "Kollars, Dmitrij"]
[Black "Kreisl, Robert"]
[Result "0-1"]
[ECO "B02"]
[WhiteElo "2549"]
[BlackElo "2404"]
[Annotator "ChessBase"]
[PlyCount "92"]
[EventDate "2018.08.06"]
[EventType "swiss"]
[EventCountry "LAT"]
[SourceTitle "playchess.com"]
[Source "ChessBase"]
[SourceQuality "1"]
[TimeControl "5400+30"]

1. e4 {[%emt 0:07:42]} Nf6 {[%emt 0:00:00]} 2. e5 {[%emt 0:00:28]} Nd5 {[%emt 0:00:00]} 3. Nc3 {[%emt 0:01:15]} Nxc3 {[%emt 0:07:15]} 4. dxc3 {[%emt 0:00:08]} Nc6 {[%emt 0:01:44]} 5. Nf3 {[%emt 0:00:23]} d6 {[%emt 0:01:34]} 6. Bf4 {[%emt 0:02:06]} Bg4 {[%emt 0:12:32]} 7. Bb5 {[%emt 0:00:18]} Qd7 {[%emt 0:00:22]} 8. h3 {[%emt 0:04:18]} Bxf3 {[%emt 0:00:59]} 9. Qxf3 {[%emt 0:00:07]} a6 {[%emt 0:00:19]} 10. Ba4 {[%emt 0:04:36]} e6 {[%emt 0:10:00]} 11. O-O-O {[%emt 0:02:47]} b5 {[%emt 0:00:41]} 12. Bb3 {[%emt 0:02:33]} Rd8 {[%emt 0:09:05]} 13. c4 {[%emt 0:10:51]} Na5 {[%emt 0:02:05]} 14. exd6 {[%emt 0:07:51]} cxd6 {[%emt 0:01:34]} 15. cxb5 {[%emt 0:11:31]} axb5 {[%emt 0:04:18]} 16. Bd5 {[%emt 0:07:14]} exd5 {[%emt 0:06:37]} 17. Qc3 {[%emt 0:01:34]} Qf5 {[%emt 0:03:24]} 18. Rhe1+ {[%emt 0:06:43]} Be7 {[%emt 0:01:09]} 19. Bh6 {[%emt 0:01:03]} Rc8 {[%emt 0:08:41]} 20. g4 {[%emt 0:05:04]} Rxc3 {[%emt 0:00:22]} 21. gxf5 {[%emt 0:00:02]} gxh6 {[%emt 0:00:19]} 22. bxc3 {[%emt 0:00:31]} Kd7 {[%emt 0:00:08]} 23. f6 {[%emt 0:00:33]} Bxf6 {[%emt 0:00:23]} 24. Rxd5 {[%emt 0:00:11]} Bxc3 {[%emt 0:05:32]} 25. Re3 {[%emt 0:01:50]} Kc6 {[%emt 0:00:27]} 26. Rf5 {[%emt 0:00:04]} Be5 {[%emt 0:00:08]} 27. f4 {[%emt 0:01:59]} Nc4 {[%emt 0:00:42]} 28. Re4 {[%emt 0:02:49]} Bb2+ {[%emt 0:02:01]} 29. Kd1 {[%emt 0:00:03]} d5 {[%emt 0:01:57]} 30. Re7 {[%emt 0:00:30]} Nd6 {[%emt 0:01:51]} 31. Rh5 {[%emt 0:00:13]} Bg7 {[%emt 0:00:49]} 32. Re3 {[%emt 0:01:55]} b4 {[%emt 0:07:51]} 33. Rg3 {[%emt 0:04:02]} Bc3 {[%emt 0:00:05]} 34. Ke2 {[%emt 0:00:12]} Re8+ {[%emt 0:01:43]} 35. Kf3 {[%emt 0:00:28]} Kc5 {[%emt 0:01:35]} 36. Rg2 {[%emt 0:01:29]} Bd4 {[%emt 0:00:23]} 37. f5 {[%emt 0:04:04]} Re3+ {[%emt 0:01:53]} 38. Kg4 {[%emt 0:00:07]} Re4+ {[%emt 0:00:35]} 39. Kf3 {[%emt 0:00:14]} Re3+ {[%emt 0:01:22]} 40. Kg4 {[%emt 0:00:04]} Re4+ {[%emt 0:00:34]} 41. Kf3 {[%emt 0:00:06]} Be3 {[%emt 0:00:43]} 42. h4 {[%emt 0:02:35]} f6 {[%emt 0:00:49]} 43. Rg8 {[%emt 0:00:53]} Kd4 {[%emt 0:01:35]} 44. Rf8 {[%emt 0:00:23]} Rf4+ {[%emt 0:00:07]} 45. Kg2 {[%emt 0:00:20]} Rf2+ {[%emt 0:00:13]} 46. Kh3 {[%emt 0:00:13]} Ne4 {[%emt 0:00:13]} 0-1

[Event "8th RTU Open 2018"]
[Site "Riga"]
[Date "2018.08.08"]
[Round "4"]
[White "Praggnanandhaa, R."]
[Black "Laurusas, Tomas"]
[Result "1/2-1/2"]
[ECO "B83"]
[WhiteElo "2532"]
[BlackElo "2463"]
[Annotator "RC"]
[PlyCount "66"]
[EventDate "2018.08.06"]
[EventType "swiss"]
[EventCountry "LAT"]
[SourceTitle "playchess.com"]
[Source "ChessBase"]
[SourceQuality "1"]
[TimeControl "5400+30"]

1. e4 {[%emt 0:00:00]} c5 {[%emt 0:00:00]} 2. Nf3 {[%emt 0:00:04]} e6 {[%emt 0:00:00]} 3. d4 {[%emt 0:00:05]} cxd4 {[%emt 0:00:00]} 4. Nxd4 {[%emt 0:00:05]} Nf6 {[%emt 0:00:00]} 5. Nc3 {[%emt 0:00:05]} d6 {[%emt 0:00:00]} 6. Be2 {[%emt 0:00:57]} Be7 {[%emt 0:00:44]} 7. O-O {[%emt 0:00:33]} a6 {[%emt 0:00:28]} 8. f4 {[%emt 0:02:01]} Qc7 {[%emt 0:00:16]} 9. g4 {[%emt 0:05:37]} Nc6 {[%emt 0:06:06]} 10. g5 {[%emt 0:05:05]} Nd7 {[%emt 0:00:19]} 11. Be3 {[%emt 0:13:24]} O-O {[%emt 0:11:31]} 12. f5 {[%emt 0:04:13]} Nxd4 {[%emt 0:00:10]} 13. Qxd4 {[%emt 0:00:34]} Qd8 {[%emt 0:08:50]} 14. f6 {[%emt 0:15:54]} gxf6 {[%emt 0:00:05]} 15. gxf6 {[%emt 0:00:10]} Bxf6 {[%emt 0:00:14]} 16. Rxf6 {[%emt 0:01:04]} Qxf6 {[%emt 0:02:47]} 17. Qxd6 {[%emt 0:00:28]} Qe5 {[%emt 0:10:48]} 18. Qd2 {[%emt 0:15:29]} f6 {[%emt 0:01:11]} 19. Kh1 {[%emt 0:02:11]} Kh8 {[%emt 0:00:55]} 20. Bd4 {[%emt 0:07:07]} Qc7 {[%emt 0:01:16]} 21. Qh6 {[%emt 0:12:16]} Qd8 {[%emt 0:02:39]} 22. e5 {[%emt 0:07:15]} Nxe5 {[%emt 0:05:34]} 23. Rg1 {[%emt 0:03:11]} Rg8 {[%emt 0:12:30]} 24. Rxg8+ {[%emt 0:00:18]} Kxg8 {[%emt 0:00:02]} 25. Bxe5 {[%emt 0:00:11]} fxe5 {[%emt 0:00:06]} 26. Ne4 {[%emt 0:00:15]} Qe7 {[%emt 0:02:46]} 27. Nf6+ {[%emt 0:00:40]} Kh8 {[%emt 0:00:05]} 28. Nxh7 {[%emt 0:00:19]} Qxh7 {[%emt 0:04:03]} 29. Qf8+ {[%emt 0:00:10]} Qg8 {[%emt 0:00:04]} 30. Qh6+ {[%emt 0:00:11]} Qh7 {[%emt 0:00:03]} 31. Qf8+ {[%emt 0:00:10]} Qg8 {[%emt 0:00:04]} 32. Qf6+ {[%emt 0:00:17]} Qg7 {[%emt 0:00:07]} 33. Qd8+ {[%emt 0:00:05]} Qg8 {[%emt 0:00:06]} 1/2-1/2

[Event "8th RTU Open 2018"]
[Site "Riga"]
[Date "2018.08.08"]
[Round "4"]
[White "Repka, Christopher"]
[Black "Miedema, David"]
[Result "1-0"]
[ECO "A45"]
[WhiteElo "2528"]
[BlackElo "2397"]
[Annotator "ChessBase"]
[PlyCount "51"]
[EventDate "2018.08.06"]
[EventType "swiss"]
[EventCountry "LAT"]
[SourceTitle "playchess.com"]
[Source "ChessBase"]
[SourceQuality "1"]
[TimeControl "5400+30"]

1. d4 {[%emt 0:06:58]} Nf6 {[%emt 0:00:00]} 2. Bg5 {[%emt 0:00:10]} d5 {[%emt 0:00:00]} 3. Nd2 {[%emt 0:01:51]} Nbd7 {[%emt 0:09:08]} 4. c3 {[%emt 0:06:09]} h6 {[%emt 0:00:46]} 5. Bh4 {[%emt 0:00:28]} g5 {[%emt 0:02:26]} 6. Bg3 {[%emt 0:00:04]} Nh5 {[%emt 0:00:04]} 7. e4 {[%emt 0:00:47]} Nxg3 {[%emt 0:00:05]} 8. hxg3 {[%emt 0:00:02]} dxe4 {[%emt 0:05:00]} 9. Nxe4 {[%emt 0:01:20]} Bg7 {[%emt 0:00:08]} 10. Nf3 {[%emt 0:11:39]} g4 {[%emt 0:04:27]} 11. Nh4 {[%emt 0:04:28]} Nb6 {[%emt 0:00:15]} 12. Bd3 {[%emt 0:05:44]} h5 {[%emt 0:12:34]} 13. Qe2 {[%emt 0:05:14]} e6 {[%emt 0:05:01]} 14. O-O-O {[%emt 0:06:10]} f5 {[%emt 0:06:05]} 15. Nc5 {[%emt 0:03:25]} Kf7 {[%emt 0:00:07]} 16. Kb1 {[%emt 0:13:05]} a5 {[%emt 0:16:12]} 17. f3 {[%emt 0:01:22]} Qd6 {[%emt 0:07:00]} 18. fxg4 {[%emt 0:03:56]} hxg4 {[%emt 0:00:08]} 19. Rdf1 {[%emt 0:01:52]} Kg8 {[%emt 0:06:03]} 20. Ng6 {[%emt 0:04:22]} Rxh1 {[%emt 0:00:35]} 21. Rxh1 {[%emt 0:00:02]} Bd7 {[%emt 0:02:21]} 22. Nf4 {[%emt 0:03:38]} Kf7 {[%emt 0:03:25]} 23. Rf1 {[%emt 0:04:22]} Qc6 {[%emt 0:04:48]} 24. a4 {[%emt 0:02:38]} e5 {[%emt 0:05:38]} 25. Nh5 {[%emt 0:01:44]} exd4 {[%emt 0:03:21]} 26. Bxf5 {[%emt 0:00:25]} 1-0

[Event "8th RTU Open 2018"]
[Site "Riga"]
[Date "2018.08.08"]
[Round "4"]
[White "Thybo, Jesper Sondergaard"]
[Black "Svane, Rasmus"]
[Result "1/2-1/2"]
[ECO "C11"]
[WhiteElo "2496"]
[BlackElo "2591"]
[Annotator "ChessBase"]
[PlyCount "52"]
[EventDate "2018.08.06"]
[EventType "swiss"]
[EventCountry "LAT"]
[SourceTitle "playchess.com"]
[Source "ChessBase"]
[SourceQuality "1"]
[TimeControl "5400+30"]

1. e4 {[%emt 0:00:00]} e6 {[%emt 0:01:44]} 2. d4 {[%emt 0:00:00]} d5 {[%emt 0:00:04]} 3. Nc3 {[%emt 0:00:00]} Nf6 {[%emt 0:00:05]} 4. Bg5 {[%emt 0:00:00]} dxe4 {[%emt 0:01:36]} 5. Nxe4 {[%emt 0:00:00]} Nbd7 {[%emt 0:01:02]} 6. Nf3 {[%emt 0:05:37]} Be7 {[%emt 0:00:04]} 7. Nxf6+ {[%emt 0:02:21]} Bxf6 {[%emt 0:00:06]} 8. Bxf6 {[%emt 0:01:01]} Qxf6 {[%emt 0:00:35]} 9. g3 {[%emt 0:01:55]} b6 {[%emt 0:11:55]} 10. Bg2 {[%emt 0:00:47]} Bb7 {[%emt 0:00:17]} 11. O-O {[%emt 0:02:08]} Rd8 {[%emt 0:01:33]} 12. c3 {[%emt 0:17:22]} c5 {[%emt 0:13:43]} 13. Qe2 {[%emt 0:00:22]} O-O {[%emt 0:05:55]} 14. dxc5 {[%emt 0:08:33]} Nxc5 {[%emt 0:02:28]} 15. Rad1 {[%emt 0:01:18]} Na4 {[%emt 0:22:27]} 16. Nh4 {[%emt 0:09:41]} Bxg2 {[%emt 0:01:01]} 17. Nxg2 {[%emt 0:00:03]} h6 {[%emt 0:08:13]} 18. Ne3 {[%emt 0:03:26]} Qe5 {[%emt 0:04:50]} 19. Rd2 {[%emt 0:02:08]} Qe4 {[%emt 0:03:40]} 20. Rfd1 {[%emt 0:04:34]} Rxd2 {[%emt 0:00:05]} 21. Rxd2 {[%emt 0:00:55]} Nc5 {[%emt 0:01:46]} 22. Qd1 {[%emt 0:01:18]} Qa8 {[%emt 0:03:32]} 23. Rd4 {[%emt 0:02:06]} Ne4 {[%emt 0:02:25]} 24. h4 {[%emt 0:02:20]} Nf6 {[%emt 0:03:24]} 25. Ng4 {[%emt 0:01:28]} Nxg4 {[%emt 0:00:23]} 26. Qxg4 {[%emt 0:00:16]} Rd8 {[%emt 0:01:50]} 1/2-1/2